fUST/lending_fUST_20260226
["ID","MTS","AMOUNT","RATE_DAILY","PERIOD"]
[406659767,1772044233510,-500.0,0.00013699,2]
[406659768,1772044233519,-228.9965818,0.00013699,2]
[406659769,1772044233528,-462.52516946,0.00013699,2]
[406659770,1772044233538,-500.0,0.00013699,2]
[406659771,1772044233547,-500.0,0.00013699,2]
[406659772,1772044233556,-500.0,0.00013699,2]
[406659773,1772044233566,-500.0,0.00013699,2]
[406659774,1772044233575,-500.0,0.00013699,2]
[406659775,1772044233584,-500.0,0.00013699,2]
[406659776,1772044233593,-500.0,0.00013699,2]
[406659777,1772044233602,-500.0,0.00013699,2]
[406659778,1772044233612,-500.0,0.00013699,2]
[406659779,1772044233621,-500.0,0.00013699,2]
[406659780,1772044233630,-500.70668014,0.00013699,2]
[406659781,1772044233639,-533.54635549,0.00013699,2]
[406659782,1772044233649,-500.0,0.00013699,2]
[406659783,1772044233659,-280.3969,0.00013794,2]
[406659784,1772044233668,-600.0,0.00013807,2]
[406659785,1772044233677,-500.0,0.0001382,2]
[406659786,1772044233686,-1000.0,0.00013821,2]
[406659787,1772044233696,-1001.53704208,0.00013821,2]
[406659788,1772044233705,-1000.0,0.00013821,2]
[406659789,1772044233714,-1000.0,0.00013821,2]
[406659790,1772044233723,-496.99650347,0.00013821,2]
[406659791,1772044233733,-319.06828449,0.00013821,2]
[406659792,1772044233745,-680.93171551,0.00013821,2]
[406659793,1772044233754,-1000.0,0.00013821,2]
[406659794,1772044233763,-729.43414158,0.00013821,2]
[406659795,1772044233772,-1000.0,0.00013821,2]
[406659796,1772044233782,-79.19957721,0.00013821,2]
[406659797,1772044233822,-920.80042279,0.00013821,2]
[406659798,1772044233831,-1000.0,0.00013821,2]
[406659799,1772044233841,-312.4010301,0.00013821,2]
[406659809,1772044238839,-150.0,0.000137,2]
[406659810,1772044238850,-687.5989699,0.00013821,2]
[406659811,1772044238860,-1000.0,0.00013821,2]
[406659812,1772044238870,-1000.0,0.00013821,2]
[406659813,1772044238880,-534.434317,0.00014037,2]
[406659814,1772044238890,-696.65020856,0.00014101,2]
[406659815,1772044238902,-1666.38628968,0.00014175,2]
[406659816,1772044238912,-500.0,0.00014218,2]
[406659817,1772044238922,-500.0,0.00014218,2]
[406659818,1772044238932,-500.0,0.00014218,2]
[406659819,1772044238942,-500.0,0.00014218,2]
[406659820,1772044238952,-500.0,0.00014218,2]
[406659821,1772044238962,-500.0,0.00014218,2]
[406659822,1772044238971,-150.15344607,0.00014221,2]
[406659823,1772044238982,-600.0,0.00014221,2]
[406659824,1772044238991,-1000.0,0.00014247,2]
[406659825,1772044239002,-1000.84651762,0.00014247,2]
[406659826,1772044239012,-1000.0,0.00014247,2]
[406659827,1772044239249,-1000.0,0.00014247,2]
[406659828,1772044239260,-397.83888522,0.00014247,2]
[406659829,1772044239270,-500.0,0.00014247,2]
[406659830,1772044239281,-165.78854723,0.00014247,2]
[406659831,1772044239292,-500.0,0.00014247,2]
[406659832,1772044239303,-738.44612936,0.00014247,2]
[406659833,1772044239313,-913.61022806,0.00014247,2]
[406659834,1772044239324,-500.0,0.00014247,2]
[406659835,1772044239335,-249.22372296,0.00014247,2]
[406659836,1772044239346,-1000.0,0.00014247,2]
[406659837,1772044239359,-1000.0,0.00014247,2]
[406659838,1772044239370,-1000.57514564,0.00014247,2]
[406659839,1772044239381,-1000.0,0.00014247,2]
[406659840,1772044239392,-1000.0,0.00014247,2]
[406659841,1772044239404,-1000.0,0.00014247,2]
[406659842,1772044239415,-165.40293696,0.00014268,2]
[406659843,1772044239425,-1500.0,0.00014368,2]
[406659844,1772044239436,-1500.0,0.00014368,2]
[406659845,1772044239447,-1500.0,0.00014368,2]
[406659846,1772044239458,-1334.38423866,0.00014368,2]
[406659847,1772044239469,-1500.0,0.00014368,2]
[406659848,1772044239481,-1500.0,0.00014368,2]
[406659849,1772044239492,-1500.0,0.00014368,2]
[406659850,1772044239502,-1500.0,0.00014368,2]
[406659851,1772044239515,-420.0,0.00014551,2]
[406659852,1772044239526,-1680.0,0.00014599,2]
[406659853,1772044239537,-534.434317,0.00014628,2]
[406659854,1772044239546,-900.0,0.00014768,2]
[406659855,1772044239557,-1303.38474924,0.00014795,2]
[406659856,1772044239567,-1097.98038219,0.00014795,2]
[406659857,1772044239578,-657.74976913,0.00014795,2]
[406659858,1772044239590,-1043.75593635,0.00014795,2]
[406659859,1772044239600,-1500.0,0.00014795,2]
[406659860,1772044239610,-1000.0,0.00014795,2]
[406659861,1772044239620,-500.0,0.00014795,2]
[406659862,1772044239630,-687.25769755,0.00014795,2]
[406659863,1772044239640,-180.26624668,0.000149,2]
[406659864,1772044239652,-185.36200605,0.00014916,2]
[406659865,1772044239662,-2000.0,0.00014916,2]
[406659866,1772044239672,-1857.23210272,0.00014916,2]
[406659867,1772044239682,-500.0,0.00014916,2]
[406659868,1772044239692,-1263.20122018,0.00014916,2]
[406659869,1772044239702,-473.39127347,0.00014916,2]
[406659870,1772044239712,-1308.67058619,0.00014916,2]
[406659871,1772044239723,-614.00875541,0.00014964,2]
[406659872,1772044239734,-720.0,0.00015187,2]
[406659873,1772044239746,-534.434317,0.00015219,2]
[406659874,1772044239758,-2504.20069742,0.00015299,2]
[406659875,1772044239769,-469.73,0.00015306,3]
[406659876,1772044239780,-1200.0,0.00015316,2]
[406659877,1772044239791,-2000.0,0.00015342,2]
[406659878,1772044239801,-2005.47792355,0.00015464,2]
[406659879,1772044239812,-239.69,0.000156,2]
[406659880,1772044239823,-165.40293696,0.00015626,2]
[406659881,1772044239834,-156.57,0.0001569,3]
[406659882,1772044239844,-283.12577878,0.000157,2]
[406659883,1772044239873,-680.30722122,0.000157,2]
[406659884,1772044239884,-1036.91637466,0.000157,30]
[406659885,1772044239896,-1341.454,0.000157,2]
[406659886,1772044239906,-10820.34977656,0.000157,2]
[406659887,1772044239917,-534.434317,0.00015809,2]
[406659888,1772044239929,-900.0,0.00015864,2]
[406659889,1772044239940,-2500.0,0.0001589,2]
[406659890,1772044239951,-587.0,0.00015953,2]
[406659891,1772044239962,-259.09,0.00016,2]
[406659892,1772044239972,-408.0,0.00016059,2]
[406659893,1772044239983,-873.043,0.00016117,120]
[406659894,1772044239994,-534.434317,0.000164,2]
[406659895,1772044240005,-150.0,0.00016438,2]
[406659896,1772044240016,-150.0,0.00016438,2]
[406659897,1772044240028,-640.84581873,0.00016485,30]
[406659898,1772044240039,-864.0,0.00016706,2]
[406659899,1772044240049,-250.0,0.00016723,2]
[406659900,1772044240059,-500.0,0.00016891,2]
[406659901,1772044240076,-707.67110794,0.00016964,2]
[406659902,1772044240087,-165.40293696,0.00016984,2]
[406659903,1772044240098,-250.0,0.00016986,2]
[406659904,1772044240108,-150.94234474,0.00016986,2]
[406659905,1772044240120,-534.434317,0.00016991,2]
[406659906,1772044240131,-313.14,0.0001706,3]
[406659908,1772044240143,-313.14,0.00017262,3]
[406659909,1772044240154,-2504.20069742,0.00017307,2]
[406659910,1772044240165,-621.04229094,0.00017309,30]
[406659911,1772044240175,-823.0,0.0001749,2]
[406659912,1772044240186,-306.12449561,0.00017534,2]
[406659913,1772044240198,-150.0,0.00017808,2]
[406659914,1772044240208,-165.40293696,0.00018342,2]
[406659915,1772044240219,-250.0,0.00018356,2]
[406659916,1772044240229,-1000.0,0.00018377,2]
[406659917,1772044240240,-626.28,0.00018632,3]
[406659918,1772044240250,-306.48021141,0.00018713,2]
[406659919,1772044240261,-263.91976586,0.00018887,2]
[406659920,1772044240271,-500.0,0.00018887,2]
[406659921,1772044240282,-500.0,0.00018887,2]
[406659922,1772044240294,-500.0,0.00018887,2]
[406659923,1772044240316,-9900.0,0.000189,2]
[406659924,1772044240329,-404.94928764,0.00018904,2]
[406659925,1772044240340,-801.33346046,0.00018964,2]
[406659926,1772044240352,-7992.56832098,0.0001899,2]
[406659927,1772044240363,-1152.0,0.00019175,2]
[406659929,1772044240374,-2504.20069742,0.00019314,2]
[406659930,1772044240385,-351427.39193036,0.00019602,2]
[406659931,1772044240401,-146285.36194554,0.00019602,2]
[406660190,1772044243585,-3867.45845588,0.00019602,2]
[406660232,1772044244154,-24619.40487327,0.00019602,2]
[406660237,1772044244208,-17.8899371,0.00019602,2]
[406660243,1772044244264,-272194.7540121,0.00019602,2]
[406660245,1772044244275,-8000.0,0.000197,2]
[406660247,1772044244286,-165.40293696,0.000197,2]
[406660249,1772044244298,-1424.274658,0.0001976,5]
[406660251,1772044244310,-1000.0,0.0001978,5]
[406660253,1772044244320,-8000.0,0.0001979,2]
[406660255,1772044244331,-500.0,0.00019799,2]
[406660257,1772044244343,-351447.63074933,0.000198,2]
[406660259,1772044244358,-284961.78577479,0.000198,2]
[406660262,1772044244370,-1000.0,0.000198,5]
[406660264,1772044244381,-975551.42709691,0.000198,2]
[406660266,1772044244392,-487.0,0.000198,2]
[406660268,1772044244403,-487.0,0.000198,2]
[406660270,1772044244414,-487.0,0.000198,2]
[406660272,1772044244424,-487.0,0.000198,2]
[406660274,1772044244434,-487.0,0.000198,2]
[406660276,1772044244446,-487.0,0.000198,2]
[406660277,1772044244456,-487.0,0.000198,2]
[406660279,1772044244467,-487.0,0.000198,2]
[406660281,1772044244478,-487.0,0.000198,2]
[406660283,1772044244488,-487.0,0.000198,2]
[406660301,1772044244704,-487.0,0.000198,2]
[406660304,1772044244718,-487.0,0.000198,2]
[406660306,1772044244730,-798.5,0.000198,2]
[406660308,1772044244741,-1000.0,0.0001982,5]
[406660311,1772044244753,-1000.0,0.0001984,5]
[406660313,1772044244766,-1000.0,0.0001986,5]
[406660315,1772044244777,-1000.0,0.0001988,5]
[406660317,1772044244787,-1000.0,0.000199,5]
[406660319,1772044244797,-11894.28206301,0.000199,2]
[406660321,1772044244808,-1000.0,0.0001992,5]
[406660323,1772044244818,-542.65094501,0.00019921,2]
[406660324,1772044244828,-504.22557757,0.00019921,2]
[406660326,1772044244838,-1000.0,0.0001994,5]
[406660329,1772044244849,-1421.4917281,0.00019941,2]
[406660331,1772044244861,-1000.0,0.0001996,5]
[406660333,1772044244873,-1000.0,0.0001998,5]
[406660334,1772044244884,-300.0,0.00019993,2]
[406660336,1772044244893,-734362.12130103,0.0002,2]
[406660461,1772044246767,-300.0,0.00019993,2]
[406660462,1772044246778,-300.0,0.00019993,2]
[406660463,1772044246789,-300.0,0.00019993,2]
[406660464,1772044246798,-300.0,0.00019993,2]
[406660465,1772044246808,-300.0,0.00019993,2]
[406660466,1772044246818,-18278.12453,0.0002,2]
[406660467,1772044246829,-3071.39409852,0.0002,2]
[406660470,1772044246847,-300.0,0.00019993,2]
[406660472,1772044246857,-11463.53234176,0.0002,2]
[406660473,1772044246869,-157153.21197,0.0002,2]
[406660487,1772044263175,-180.26624667,0.000149,2]
[406660488,1772044263259,253.30247507,0.00013699,2]
[406660489,1772044266698,465.82772751,0.00013699,2]
[406660494,1772044359852,224.85,0.00012001,2]
[406660505,1772044386802,211.61,0.000136,30]
[406660513,1772044567675,329.39,0.00012,2]
[406660516,1772044813531,160.479768,0.00012631,41]
[406660517,1772044813804,160.479768,0.00012631,61]
[406660518,1772044814036,160.479768,0.00012631,80]
[406660519,1772044814275,160.479768,0.00012631,100]
[406660520,1772044814486,160.479768,0.00012631,120]
[406660524,1772045121742,18572.7415349,0.00011902,2]
[406660525,1772045150801,17597.5413444,0.00011841,2]
[406660562,1772045432247,-209.793995,0.00012298,2]
[406660563,1772045432257,-543.95783593,0.00012298,2]
[406660564,1772045432267,-594.0,0.00012298,2]
[406660565,1772045432276,-200.0,0.0001263,2]
[406660566,1772045432285,-160.479768,0.00012631,2]
[406660567,1772045432295,-160.479768,0.00012631,21]
[406660568,1772045432305,-200.0,0.00012631,4]
[406660569,1772045432315,-300.0,0.00012779,2]
[406660570,1772045432324,-300.0,0.00012779,2]
[406660571,1772045432333,-300.0,0.00012779,2]
[406660572,1772045432343,-300.0,0.0001278,2]
[406660573,1772045432352,-1087.0,0.0001278,2]
[406660574,1772045432361,-8119.6889978,0.00012781,2]
[406660575,1772045432370,-313.3896,0.00012904,14]
[406660576,1772045432379,-563.62570301,0.00013273,2]
[406660577,1772045432388,-205.51062725,0.00013273,2]
[406660578,1772045432398,-151.0,0.00013278,2]
[406660579,1772045432410,-151.0,0.00013278,2]
[406660580,1772045432419,-151.0,0.00013278,2]
[406660581,1772045432430,-151.0,0.00013278,2]
[406660582,1772045432440,-151.0,0.00013278,2]
[406660583,1772045432451,-151.0,0.00013278,2]
[406660584,1772045432460,-151.0,0.00013278,2]
[406660585,1772045432469,-151.0,0.00013278,2]
[406660586,1772045432479,-151.0,0.00013278,2]
[406660587,1772045432491,-151.0,0.00013278,2]
[406660588,1772045432500,-151.0,0.00013278,2]
[406660589,1772045432510,-151.0,0.00013278,2]
[406660590,1772045432519,-151.0,0.00013278,2]
[406660591,1772045432528,-151.0,0.00013278,2]
[406660592,1772045432537,-151.0,0.00013278,2]
[406660593,1772045432546,-151.0,0.00013278,2]
[406660594,1772045432555,-151.0,0.00013278,2]
[406660595,1772045432564,-151.0,0.00013278,2]
[406660596,1772045432573,-151.0,0.00013278,2]
[406660597,1772045432582,-151.0,0.00013278,2]
[406660598,1772045432592,-500.0,0.00013284,2]
[406660599,1772045432602,-500.0,0.00013284,2]
[406660600,1772045432611,-500.0,0.00013284,2]
[406660601,1772045432621,-500.0,0.00013284,2]
[406660602,1772045432630,-300.0,0.00013555,2]
[406660603,1772045432639,-300.0,0.00013555,2]
[406660604,1772045432649,-300.0,0.00013555,2]
[406660605,1772045432658,-300.0,0.00013555,2]
[406660606,1772045432668,-300.0,0.00013555,2]
[406660607,1772045432677,-300.0,0.00013555,2]
[406660608,1772045432687,-300.0,0.00013555,2]
[406660609,1772045432696,-300.0,0.00013555,2]
[406660610,1772045432706,-300.0,0.00013555,2]
[406660611,1772045432715,-300.0,0.00013555,2]
[406660612,1772045432724,-300.0,0.00013555,2]
[406660613,1772045432733,-300.0,0.00013555,2]
[406660614,1772045432744,-300.0,0.00013555,2]
[406660615,1772045432753,-300.0,0.00013555,2]
[406660616,1772045432762,-300.0,0.00013555,2]
[406660617,1772045432772,-600.0,0.00013555,2]
[406660618,1772045432782,-1000.0,0.000136,2]
[406660619,1772045432791,-300.0,0.00013673,2]
[406660620,1772045432801,-263.91976586,0.00013698,2]
[406660621,1772045432810,-500.0,0.00013698,2]
[406660622,1772045432819,-500.0,0.00013698,2]
[406660623,1772045432829,-500.0,0.00013698,2]
[406660624,1772045432838,-638.34690514,0.00013698,2]
[406660625,1772045432847,-500.0,0.00013698,2]
[406660626,1772045432856,-187.18584781,0.00013698,2]
[406660627,1772045432865,-500.0,0.00013698,2]
[406660628,1772045432874,-473.53147907,0.00013698,2]
[406660629,1772045432884,-612.31208511,0.00013698,2]
[406660630,1772045432893,-500.0,0.00013698,2]
[406660631,1772045432902,-284.7476509,0.00013699,2]
[406660632,1772045432912,-958.502986,0.00013699,2]
[406660633,1772045432922,-1433.2653937,0.00013699,2]
[406660634,1772045432931,-500.0,0.00013699,2]
[406660635,1772045432941,-500.0,0.00013699,2]
[406660636,1772045432951,-500.0,0.00013699,2]
[406660637,1772045432962,-500.0,0.00013699,2]
[406660638,1772045432972,-177.75470331,0.00013699,2]
[406660639,1772045432982,-372.69325456,0.00013699,2]
[406660640,1772045432992,-500.0,0.00013699,2]
[406660641,1772045433001,-500.44853257,0.00013699,2]
[406660642,1772045433010,-500.0,0.00013699,2]
[406660643,1772045433030,-500.76223663,0.00013699,2]
[406660644,1772045433040,-150.0,0.000137,2]
[406660645,1772045433051,-420.0,0.00014017,2]
[406660646,1772045433060,-6330.34072245,0.00014175,2]
[406660647,1772045433076,-673.41,0.00014175,2]
[406660648,1772045433091,-366.53151561,0.00014175,2]
[406660649,1772045433103,-3628.40796607,0.00014175,2]
[406660650,1772045433114,-1777.0335527,0.00014175,2]
[406660651,1772045433124,-743.24681941,0.00014175,2]
[406660667,1772045437841,-180.0,0.00013278,2]
[406660668,1772045437850,-1141.8647845,0.00013555,2]
[406660669,1772045437894,-1747.39719227,0.00013555,2]
[406660717,1772045440245,-343.89563199,0.00013555,2]
[406660719,1772045440257,-54.10989092,0.000137,2]
[406660721,1772045440268,-95.89010908,0.000137,2]
[406660723,1772045440278,-923.35570455,0.00014175,2]
[406660725,1772045440288,-1704.49448181,0.00014175,2]
[406660727,1772045440297,-1679.40708367,0.00014175,2]
[406660729,1772045440307,-3166.40587413,0.00014175,2]
[406660731,1772045440316,-150.0,0.000142,2]
[406660733,1772045440326,-1095.53409594,0.0001422,2]
[406660735,1772045440335,-600.0,0.00014221,2]
[406660737,1772045440345,-1000.0,0.00014247,2]
[406660739,1772045440355,-334.21145277,0.00014247,2]
[406660741,1772045440364,-500.0,0.00014247,2]
[406660743,1772045440374,-500.0,0.00014247,2]
[406660745,1772045440383,-1000.0,0.00014247,2]
[406660747,1772045440392,-651.54271982,0.00014247,2]
[406660749,1772045440402,-641.8702464,0.00014298,2]
[406660751,1772045440418,-250.0,0.00014562,2]
[406660753,1772045440428,-500.0,0.00014562,2]
[406660755,1772045440437,-150.0,0.00014562,2]
[406660757,1772045440446,-255.82702629,0.00014562,2]
[406660759,1772045440457,-150.0,0.00014562,2]
[406660761,1772045440466,-150.0,0.00014562,2]
[406660763,1772045440476,-500.0,0.00014617,2]
[406660765,1772045440489,-150.0,0.00014617,2]
[406660768,1772045440498,-150.0,0.00014617,2]
[406660770,1772045440508,-500.0,0.00014672,2]
[406660772,1772045440517,-500.0,0.00014726,2]
[406660774,1772045440527,-500.0,0.00014781,2]
[406660776,1772045440536,-1000.0,0.00014795,2]
[406660778,1772045440546,-1173.0779012,0.00014795,2]
[406660780,1772045440556,-225.30264723,0.000149,2]
[406660782,1772045440565,-3544.67494328,0.00014905,2]
[406660784,1772045440574,-720.0,0.0001491,2]
[406660786,1772045440583,-5138.86438934,0.0001501,2]
[406660788,1772045440593,-165.40293696,0.00015081,2]
[406660790,1772045440603,-3393.32799293,0.00015181,2]
[406660792,1772045440611,-1475.07799579,0.00015182,2]
[406661043,1772045443107,-300.0,0.00014457,2]
[406661045,1772045443117,-1778.6219361,0.00015182,2]
[406661047,1772045443129,-87.285218,0.00015182,2]
[406661049,1772045443138,-587.0,0.00015376,2]
[406661051,1772045443147,-3810.06633861,0.00015635,2]
[406661060,1772045443214,-725.89111564,0.00015635,2]
[406661062,1772045443223,-2000.0,0.000157,2]
[406661064,1772045443233,-10820.34977656,0.000157,2]
[406661066,1772045443242,-1036.91637466,0.000157,30]
[406661068,1772045443252,-259.09,0.00016,2]
[406661070,1772045443260,-184.601124,0.00016017,2]
[406661072,1772045443270,-1044.632,0.00016117,120]
[406661074,1772045443279,-388.7,0.00016179,3]
[406661076,1772045443289,-194.35,0.00016179,3]
[406661078,1772045443298,-4340.41552573,0.00016187,2]
[406661080,1772045443307,-4272.78799544,0.0001619,2]
[406661082,1772045443317,-250.0,0.00016249,2]
[406661084,1772045443326,-739.78265687,0.00016298,2]
[406661086,1772045443335,-5312.31633387,0.00016364,2]
[406661088,1772045443344,-150.0,0.00016438,2]
[406661090,1772045443353,-640.84581873,0.00016485,30]
[406661092,1772045443362,-200.0,0.0001678,3]
[406661094,1772045443371,-823.0,0.00016866,2]
[406661096,1772045443380,-150.94234474,0.00016986,2]
[406661098,1772045443389,-5445.63751867,0.00017094,2]
[406661100,1772045443399,-169.38488998,0.0001717,2]
[406661102,1772045443409,-180.58,0.00017256,2]
[406661104,1772045443425,-621.04229094,0.00017309,30]
[406661106,1772045443435,-777.4,0.00017549,3]
[406661108,1772045443444,-388.7,0.00017549,3]
[406661110,1772045443454,-150.0,0.00017808,2]
[406661112,1772045443463,-398.77467998,0.00018025,2]
[406661114,1772045443472,-837.69506733,0.00018298,2]
[406661116,1772045443481,-250.0,0.00018356,2]
[406661118,1772045443491,-1152.0,0.00018501,2]
[406661120,1772045443502,-167.57656395,0.00018728,3]
[406661121,1772045443512,-412.84908045,0.0001878,3]
[406661124,1772045443521,-5880.3858806,0.0001881,2]
[406661126,1772045443531,-1490.17903114,0.0001881,2]
[406661128,1772045443540,-404.94928764,0.00018904,2]
[406661129,1772045443549,-717.79442397,0.00018941,2]
[406661131,1772045443559,-583.07,0.0001898,3]
[406661133,1772045443569,-21425.540796,0.0001899,2]
[406661135,1772045443578,-306.48021141,0.00019078,2]
[406661137,1772045443588,-580.48463929,0.00019262,2]
[406661139,1772045443597,-424.73760147,0.00019262,2]
[406661141,1772045443607,-764.52768264,0.00019262,2]
[406661143,1772045443616,-1359.1603247,0.00019262,2]
[406661145,1772045443626,-179.92127894,0.00019262,2]
[406661147,1772045443636,-719.68511575,0.00019262,2]
[406661149,1772045443645,-1619.29151045,0.00019262,2]
[406661151,1772045443655,-2878.74046302,0.00019262,2]
[406661153,1772045443665,-4498.03197347,0.00019262,2]
[406661155,1772045443674,-151.0,0.000196,2]
[406661157,1772045443684,-9900.0,0.000197,2]
[406661159,1772045443693,-165.40293696,0.000197,2]
[406661161,1772045443703,-1110.69374357,0.00019799,2]
[406661163,1772045443713,-2000.0,0.000198,2]
[406661165,1772045443722,-311953.19944311,0.000198,2]
[406661168,1772045443735,-39474.19248725,0.000198,2]
[406661170,1772045443744,-3867.45845588,0.000198,2]
[406661172,1772045443753,-284961.78577479,0.000198,2]
[406661174,1772045443762,-975551.42709691,0.000198,2]
[406661176,1772045443772,-643.17,0.000198,2]
[406661178,1772045443781,-487.0,0.000198,2]
[406661180,1772045443790,-487.0,0.000198,2]
[406661182,1772045443799,-622.61,0.000198,2]
[406661184,1772045443808,-646.52,0.000198,2]
[406661186,1772045443818,-646.52,0.000198,2]
[406661188,1772045443827,-646.94,0.000198,2]
[406661190,1772045443836,-487.0,0.000198,2]
[406661192,1772045443845,-487.0,0.000198,2]
[406661194,1772045443855,-487.0,0.000198,2]
[406661196,1772045443865,-487.0,0.000198,2]
[406661197,1772045443874,-836.14,0.000198,2]
[406661199,1772045443884,-846.37,0.000198,2]
[406661201,1772045443893,-1253.4265508,0.00019846,2]
[406661203,1772045443903,-1276.07897594,0.00019857,2]
[406661206,1772045443912,-10704.8538567,0.000199,2]
[406661208,1772045443922,-1237.379109,0.0001996,5]
[406661209,1772045443931,-1000.0,0.0001998,5]
[406661212,1772045443943,-1463961.20482905,0.0002,2]
[406661214,1772045443953,-1000.0,0.0002,2]
[406661216,1772045443963,-1000.0,0.0002,2]
[406661218,1772045443972,-1000.0,0.0002,2]
[406661220,1772045443982,-1000.0,0.0002,2]
[406661222,1772045443992,-1000.0,0.0002,2]
[406661224,1772045444003,-1000.0,0.0002,2]
[406661226,1772045444012,-1000.0,0.0002,2]
[406661228,1772045444022,-1000.0,0.0002,2]
[406661230,1772045444032,-1000.0,0.0002,2]
[406661232,1772045444042,-1000.0,0.0002,2]
[406661234,1772045444051,-1000.0,0.0002,2]
[406661236,1772045444061,-1000.0,0.0002,2]
[406661238,1772045444070,-210.468,0.0002,2]
[406661240,1772045444079,-1000.0,0.0002,2]
[406661242,1772045444089,-1000.0,0.0002,2]
[406661244,1772045444100,-1000.0,0.0002,2]
[406661246,1772045444109,-1000.0,0.0002,2]
[406661248,1772045444119,-1000.0,0.0002,2]
[406661250,1772045444128,-1000.0,0.0002,2]
[406661252,1772045444137,-1000.0,0.0002,2]
[406661254,1772045444147,-303.03,0.0002,2]
[406661256,1772045444156,-1000.0,0.0002,2]
[406661258,1772045444166,-1000.0,0.0002,2]
[406661260,1772045444176,-1000.0,0.0002,2]
[406661262,1772045444185,-1000.0,0.0002,2]
[406661264,1772045444195,-1000.0,0.0002,2]
[406661266,1772045444204,-1000.0,0.0002,2]
[406661268,1772045444214,-259.74,0.0002,2]
[406661270,1772045444223,-1000.0,0.0002,5]
[406661272,1772045444232,-151.75701313,0.0002,2]
[406661274,1772045444241,-250.0,0.0002,10]
[406661276,1772045444250,-1000.0,0.0002,2]
[406661278,1772045444260,-1000.0,0.0002,2]
[406661280,1772045444269,-1000.0,0.0002,2]
[406661282,1772045444278,-1000.0,0.0002,2]
[406661284,1772045444287,-1000.0,0.0002,2]
[406661286,1772045444297,-1000.0,0.0002,2]
[406661288,1772045444306,-1000.0,0.0002,2]
[406661290,1772045444315,-1000.0,0.0002,2]
[406661292,1772045444325,-1000.0,0.0002,2]
[406661294,1772045444333,-1000.0,0.0002,2]
[406661296,1772045444342,-1000.0,0.0002,2]
[406661298,1772045444352,-1000.0,0.0002,2]
[406661300,1772045444361,-1000.0,0.0002,2]
[406661302,1772045444370,-1000.0,0.0002,2]
[406661304,1772045444380,-1000.0,0.0002,2]
[406661306,1772045444389,-1000.0,0.0002,2]
[406661308,1772045444398,-1000.0,0.0002,2]
[406661310,1772045444408,-756.804659,0.0002,2]
[406661312,1772045444420,-2000.0,0.0002,7]
[406661314,1772045444430,-179.68980178,0.0002,2]
[406661316,1772045444440,-151.0,0.0002,2]
[406661318,1772045444450,-151.0,0.0002,2]
[406661320,1772045444460,-151.0,0.0002,2]
[406661322,1772045444470,-151.0,0.0002,2]
[406661324,1772045444479,-151.0,0.0002,2]
[406661326,1772045444489,-263.55074954,0.0002,2]
[406661328,1772045444503,-1000.0,0.0002,2]
[406661330,1772045444513,-487.0,0.0002,2]
[406661332,1772045444523,-487.0,0.0002,2]
[406661334,1772045444533,-487.0,0.0002,2]
[406661336,1772045444542,-487.0,0.0002,2]
[406661338,1772045444552,-487.0,0.0002,2]
[406661340,1772045444561,-487.0,0.0002,2]
[406661342,1772045444570,-487.0,0.0002,2]
[406661344,1772045444580,-487.0,0.0002,2]
[406661346,1772045444589,-487.0,0.0002,2]
[406661348,1772045444598,-487.0,0.0002,2]